Cogmind - Beta 15 @@@ ROGUE MODE // 2025.09.17 @ 12:01:17 Player: Kotyk77 Result: Destroyed by G-47 Trooper with Particle Gun Performance ------------- Evolutions (2) 1000 Regions Visited (5) 1000 Robots Destroyed (42) 210 Value Destroyed (1113) 1113 Prototype IDs (1) 20 Alien Tech Used (0) 0 Bonus (0) 0 TOTAL SCORE: 3343 Bonus ------- None Cogmind --------- Core Integrity 0/550 Matter 285/300 Energy 31/100 System Corruption 14% Temperature Cool (62) Movement Core (800) Ox15 Location -8/Materials Parts ------- > --- POWER (1) -------- (None) > --- PROPULSION (3) --- (None) > --- UTILITY (5) ------ High-capacity Storage Unit Improved Sensor Array Improved Signal Interpreter Hacking Suite Makeshift Hacking Suite > --- WEAPON (2) ------- Heavy Particle Cannon > --- INVENTORY (20) --- Ion Engine Light Ion Engine Improved Cooling System Compact Battery (200) Large Matter Pod (150) Improved Terrain Scanner Melee Analysis Suite Core Shielding Makeshift System Restoration Module Improved Trap Extractor (0/6) Pulse Rifle High-powered Field Laser High-powered Field Laser Heavy Particle Cannon Autogun Gauss Rifle Gauss Cannon Shock Bomb Launcher Peak State ------------ > --- POWER ------------ Light Nuclear Core > --- PROPULSION ------- Wheel Compact Wheel Compact Wheel > --- UTILITY ---------- High-capacity Storage Unit Compact Battery Makeshift Cloaking Device Makeshift Hacking Suite Improved Trap Extractor > --- WEAPON ----------- Gauss Cannon Makeshift Hammer > --- INVENTORY -------- Ion Engine Light Ion Engine Aluminum Leg Aluminum Leg Carbon-fiber Leg Cesium-ion Thruster Improved Cooling System Large Matter Pod Improved Sensor Array Improved Signal Interpreter Improved Terrain Scanner Melee Analysis Suite Medium Armor Plating Hacking Suite Makeshift System Restoration Module High-powered Field Laser High-powered Field Laser Gauss Rifle Mini Grenade Launcher Mini Grenade Launcher [Rating: 36] Favorites ----------- Power Ion Engine Engine Ion Engine Power Core Light Nuclear Core Propulsion Aluminum Leg Leg Aluminum Leg Wheel Compact Wheel Flight Unit Cesium-ion Thruster Utility High-capacity Storage Unit Device Improved Sensor Array Storage High-capacity Storage Unit Processor Improved Signal Interpreter Hackware Makeshift Hacking Suite Protection Medium Armor Plating Weapon Light Assault Rifle Energy Gun High-powered Field Laser Energy Cannon Heavy Particle Cannon Ballistic Gun Light Assault Rifle Ballistic Cannon Gauss Cannon Launcher Grenade Launcher Impact Weapon Makeshift Hammer Build | -11 -10 -10 -10 -9 -8 ------- Run | Yrd Mat Min Exi Min Mat Slots Evolved 4 | . . . . . 4 Power . | . . . . . . Propulsion 1 | . . . . . 1 Utility 3 | . . . . . 3 Weapon . | . . . . . . Parts Attached 34 | 6 4 1 1 1 21 Power 2 | 1 . . . . 1 Engine 1 | 1 . . . . . Core 1 | . . . . . 1 Reactor . | . . . . . . Propulsion 8 | 2 2 . . . 4 Treads . | . . . . . . Leg 4 | . 2 . . . 2 Wheel 3 | 2 . . . . 1 Hover . | . . . . . . Flight 1 | . . . . . 1 Utility 13 | 1 1 1 1 . 9 Device 4 | . . . . . 4 Storage 3 | 1 1 . . . 1 Processor 1 | . . . . . 1 Hackware 3 | . . . 1 . 2 Protection 2 | . . 1 . . 1 Artifact . | . . . . . . Weapon 11 | 2 1 . . 1 7 Energy Gun 1 | . . . . . 1 Energy Cannon 1 | . . . . . 1 Ballistic Gun 4 | 2 . . . 1 1 Ballistic Cannon 1 | . . . . . 1 Launcher 3 | . 1 . . . 2 Special Weapon . | . . . . . . Impact Weapon 1 | . . . . . 1 Slashing Weapon . | . . . . . . Piercing Weapon . | . . . . . . Special Melee Weapon . | . . . . . . Unidentified Prototypes 1 | . . . . . 1 Corrupted Parts 1 | . . . . . 1 System Corruption 11 | . . . . . 11 Parts Lost 14 | . . . . . 14 Power 2 | . . . . . 2 Propulsion 7 | . . . . . 7 Utility 3 | . . . . . 3 Weapon 2 | . . . . . 2 Highest Loss Streak 7 | . . . . . 7 To Critical Strikes . | . . . . . . Average Backups 18 | 2 15 19 19 19 18 Power 1 | . 1 1 1 1 1 Propulsion 1 | 1 2 2 2 2 1 Utility 6 | . 3 4 5 7 7 Weapon 9 | . 8 12 11 9 6 Tool/Special . | . . . . . . Unused Backups 25 | . . . 3 1 21 Power 3 | . . . . . 3 Propulsion . | . . . . . . Utility 8 | . . . . . 8 Weapon 14 | . . . 3 1 10 Tool/Special . | . . . . . . Average Slot Usage (%) 98 | . 99 99 100 100 95 Engine 11 | . 14 14 14 14 6 Leg 22 | . 26 28 28 28 12 Wheel 3 | . 1 . . . 10 Device 3 | . . . . . 11 Storage 15 | . 27 14 14 14 12 Processor 1 | . . . . . 5 Hackware 7 | . . . 7 14 11 Protection 4 | . . 13 6 . 3 Ballistic Gun 11 | . 23 14 14 14 2 Launcher 9 | . 4 14 14 14 4 Impact Weapon 2 | . . . . . 7 Peak Build Rating 36 | 6 10 11 14 17 36 Average Rating 18 | 5 9 10 12 14 31 On Entrance 9 | . 6 10 11 14 17 Naked Turns . | . . . . . . Heaviest Build 66 | 12 54 56 56 52 66 Greatest Support 42 | 26 26 20 20 20 42 Greatest Overweight (x) 14 | . 2 2 2 2 14 Average Overweight (x) 1 | . 1 2 2 2 1 Largest Inventory Capacity 20 | 8 20 20 20 20 20 Average Capacity 19 | 7 19 20 20 20 20 Most Carried 20 | 4 20 20 20 20 20 Average Carried 18 | 2 15 19 19 19 18 Final Capacity 20 | 8 20 20 20 20 20 Final Carried 20 | 4 20 19 20 20 18 Class Distribution -------------------- 64% | Mutant 24% | Commander-Mutant 10% | Hacker-Mutant Dominant Class ---------------- Mutant | -10/Materials Mutant | -10/Mines Commander-Mutant | -10/Exiles Commander-Mutant | -9/Mines Mutant | -8/Materials Resources | -11 -10 -10 -10 -9 -8 ----------- Run | Yrd Mat Min Exi Min Mat Matter Collected 1099 | 209 147 . . 140 603 Remotely . | . . . . . . Salvage Created 1111 | . 147 . . . 964 Parts 34 | . 8 . . . 26 Haulers Intercepted . | . . . . . . Recyclers Shooed . | . . . . . . Parts Field Recycled . | . . . . . . Retrieved Matter . | . . . . . . Parts Self-Destructed . | . . . . . . Prevented . | . . . . . . Kills | -11 -10 -10 -10 -9 -8 ------- Run | Yrd Mat Min Exi Min Mat Combat Hostiles Destroyed 20 | . 3 . . . 17 Melee 1 | . . . . . 1 Guns 4 | . 3 . . . 1 Cannons 1 | . . . . . 1 AOE 9 | . . . . . 9 Classes Destroyed 10 | . 2 . . . 8 Worker 5 | . 1 . . . 4 Builder 11 | . . . . . 11 Recycler 2 | . . . . . 2 Mechanic 1 | . . . . . 1 Watcher 3 | . . . . . 3 Grunt 14 | . 3 . . . 11 Brawler 1 | . . . . . 1 Duelist 1 | . . . . . 1 Sentry 2 | . . . . . 2 Hunter 2 | . . . . . 2 Best Kill Streak 12 | . 1 . . . 12 Combat Bots Only 9 | . 1 . . . 9 Max Kills in Single Turn 2 | . 1 . . . 2 Gunslinging . | . . . . . . Exploded 2 | . . . . . 2 Melee 1 | . . . . . 1 Uniques/NPCs Destroyed . | . . . . . . Combat | -11 -10 -10 -10 -9 -8 -------- Run | Yrd Mat Min Exi Min Mat Hostile Shots Fired 144 | . 18 . . . 126 Missed 39 | . 7 . . . 32 Hits 105 | . 11 . . . 94 Melee 6 | . . . . . 6 Projectile 99 | . 11 . . . 88 Critical Strikes 5 | . . . . . 5 Damage Taken 1884 | . 133 . . 53 1698 Core 627 | . 50 . . 11 566 Absorbed by Shields . | . . . . . . Core Remaining (%) 87 | 100 . . . 75 . Volleys Fired 77 | . 27 . . . 50 Largest 2 | . 2 . . . 2 Hottest 98 | . 40 . . . 98 Shots Fired 109 | . 54 . . . 55 Gun 69 | . 54 . . . 15 Cannon 23 | . . . . . 23 Launcher 17 | . . . . . 17 Special . | . . . . . . Kinetic 81 | . 54 . . . 27 Thermal 11 | . . . . . 11 Explosive 17 | . . . . . 17 Electromagnetic . | . . . . . . Robot Hit Streak 7 | . 7 . . . 7 Robot Miss Streak 6 | . 6 . . . 4 Penetration Max . | . . . . . . Secondary Targets . | . . . . . . Shots Hit Robots 91 | . 29 . . . 62 Core Hits 51 | . 14 . . . 37 Critical Kills 1 | . . . . . 1 Critical Parts Destroyed 5 | . 1 . . . 4 Critical Strikes 11 | . 1 . . . 10 Meltdown 1 | . . . . . 1 Destroy 1 | . 1 . . . . Blast 4 | . . . . . 4 Smash 5 | . . . . . 5 Melee Attacks 59 | . . . . . 59 Impact 59 | . . . . . 59 Slashing . | . . . . . . Piercing . | . . . . . . Sneak Attacks 16 | . . . . . 16 Combat Hostiles . | . . . . . . Follow-up Attacks . | . . . . . . Damage Inflicted 4375 | . 270 . . . 4105 Guns 383 | . 257 . . . 126 Cannons 432 | . . . . . 432 Explosions 1451 | . . . . . 1451 Melee 2096 | . . . . . 2096 Ramming 13 | . 13 . . . . Kinetic 670 | . 257 . . . 413 Thermal 145 | . . . . . 145 Explosive 1451 | . . . . . 1451 Electromagnetic . | . . . . . . Impact 2096 | . . . . . 2096 Slashing . | . . . . . . Piercing . | . . . . . . Highest Corruption 14 | . . . . . 14 Average Corruption 3 | . . . . . 3 Corruption Purged . | . . . . . . Corruption Blocked . | . . . . . . Effects 17 | . . . . . 17 Message Errors 3 | . . . . . 3 Matter Fused 4 | . . . . . 4 Heat Flow Errors 3 | . . . . . 3 Energy Discharges 3 | . . . . . 3 Parts Rejected 2 | . . . . . 2 Data Loss (minor) 1 | . . . . . 1 Data Loss (major) 1 | . . . . . 1 Overload Shots . | . . . . . . Overflow Damage 1079 | . . . . . 1079 Projectiles 38 | . . . . . 38 Explosions 43 | . . . . . 43 Melee 998 | . . . . . 998 Knockbacks 10 | . . . . . 10 Impact 8 | . . . . . 8 Kinetic 2 | . . . . . 2 Secondary . | . . . . . . Self-Inflicted Damage 163 | . . . . . 163 Shots 5 | . . . . . 5 Rammed . | . . . . . . Targets Rammed 1 | . 1 . . . . Kicked 1 | . 1 . . . . Crushed . | . . . . . . Highest Temperature 259 | . 12 . . . 259 Average Temperature 38 | . 7 . . . 43 Received Heat Transfer 813 | . 75 . . . 738 Siege Activations . | . . . . . . Martial Activations . | . . . . . . Shielding Activations . | . . . . . . Robots Disrupted . | . . . . . . Combat Hostiles . | . . . . . . Robots Corrupted 10 | . . . . . 10 Combat Hostiles 4 | . . . . . 4 Parts Fried 26 | . . . . . 26 Impact Corruptions 40 | . . . . . 40 Robots Melted 1 | . . . . . 1 Combat Hostiles . | . . . . . . Parts Melted . | . . . . . . Heat Transferred 222 | . . . . . 222 Parts Sabotaged . | . . . . . . Parts Stolen . | . . . . . . Parts Stripped . | . . . . . . Power Chain Reactions . | . . . . . . Alert | -11 -10 -10 -10 -9 -8 ------- Run | Yrd Mat Min Exi Min Mat Maximum Alert Level . | . . . . . . Low Security (%) 100 | 100 100 100 . 100 100 Level 1 . | . . . . . . Level 2 . | . . . . . . Level 3 . | . . . . . . Level 4 . | . . . . . . Level 5 . | . . . . . . High Security . | . . . . . . Max Security . | . . . . . . Peak Influence 185 | . 30 . . . 185 Initial . | . . . . . . Average 36 | . 3 . . . 69 Influence Increases 783 | . 85 . . . 698 Destroy 0b10 Robot/C 400 | . 60 . . . 340 Destroy 0b10 Robot/NC 115 | . 5 . . . 110 Destroy Leader 118 | . 20 . . . 98 Allied During Kill 3 | . . . . . 3 Disable Machine 30 | . . . . . 30 Destroy Structure 72 | . . . . . 72 Lose Combat Pursuer 45 | . . . . . 45 Influence Decreases 633 | . 85 . . . 548 Time Decay 473 | . 85 . . . 388 Lost Part 140 | . . . . . 140 Lost Ally 20 | . . . . . 20 Squads Dispatched 7 | . 2 . . . 5 Investigation 2 | . . . . . 2 Extermination . | . . . . . . Reinforcement 5 | . 2 . . . 3 Assault . | . . . . . . Garrison . | . . . . . . Intercept . | . . . . . . Searches Triggered . | . . . . . . Construction Impeded 2 | . . . . . 2 Haulers Reinforced . | . . . . . . Active Scanning Responses . | . . . . . . Cargo Convoy Interrupts . | . . . . . . Stealth | -11 -10 -10 -10 -9 -8 --------- Run | Yrd Mat Min Exi Min Mat Distress Signals 4 | . . . . 2 2 Communications Jammed . | . . . . . . Distress Signals . | . . . . . . Times Spotted 40 | . 7 . . . 33 Peak Tracking Total 6 | . 4 . . . 6 Tactical Retreats 2 | . . . . . 2 Traps | -11 -10 -10 -10 -9 -8 ------- Run | Yrd Mat Min Exi Min Mat Traps Triggered 2 | . . . . 1 1 Indirectly . | . . . . . . Trap Hack Attempts . | . . . . . . Triggered . | . . . . . . Disarmed . | . . . . . . Reprogrammed . | . . . . . . Reused . | . . . . . . Traps Extracted . | . . . . . . Installed . | . . . . . . Triggered . | . . . . . . Machines | -11 -10 -10 -10 -9 -8 ---------- Run | Yrd Mat Min Exi Min Mat Machines Disabled 2 | . . . . . 2 Max in Single Turn 1 | . . . . . 1 Machines Repaired . | . . . . . . Machines Dismantled . | . . . . . . Machines Sabotaged . | . . . . . . Overloaded Fab Kills . | . . . . . . Hacking | -11 -10 -10 -10 -9 -8 --------- Run | Yrd Mat Min Exi Min Mat Machines Accessed 6 | . 2 . 1 1 2 Terminals 3 | . 1 . . . 2 Fabricators . | . . . . . . Repair Stations . | . . . . . . Recycling Units 1 | . 1 . . . . Scanalyzers . | . . . . . . Garrison Access . | . . . . . . Total Hacks 35 | . 7 . 23 1 4 Successful 28 | . 2 . 23 1 2 Failed 6 | . 5 . . . 1 Catastrophic 1 | . 1 . . . . Database Lockouts 1 | . . . . . 1 Manual 12 | . 6 . . . 6 Terminals 9 | . 5 . . . 4 Fabricators . | . . . . . . Repair Stations . | . . . . . . Recycling Units 2 | . 2 . . . . Scanalyzers . | . . . . . . Garrison Access . | . . . . . . Terminal Hacks 25 | . . . 23 1 1 Record 23 | . . . 23 . . Robot Analysis 1 | . . . . . 1 Open Door 1 | . . . . 1 . Fabricator Hacks . | . . . . . . Repair Station Hacks . | . . . . . . Recycling Unit Hacks 2 | . 2 . . . . Process 1 | . 1 . . . . Report Inventory 1 | . 1 . . . . Scanalyzer . | . . . . . . Garrison Access Hacks . | . . . . . . Unauthorized Hacks 1 | . . . . . 1 Terminals 1 | . . . . . 1 Botnet 1 | . . . . . 1 Fabricators . | . . . . . . Repair Stations . | . . . . . . Recycling Units . | . . . . . . Scanalyzers . | . . . . . . Garrison Access . | . . . . . . Data Cores Recovered . | . . . . . . Used . | . . . . . . Hacking Detections 4 | . 2 . . . 2 Full Trace Events 3 | . 1 . . . 2 Feedback Events . | . . . . . . Feedback Blocked . | . . . . . . Robot Schematics Acquired . | . . . . . . Robots Built . | . . . . . . Authchips . | . . . . . . Time . | . . . . . . Total Robot Build Rating . | . . . . . . Part Schematics Acquired . | . . . . . . Parts Built . | . . . . . . Authchips . | . . . . . . Time . | . . . . . . Total Part Build Rating . | . . . . . . Parts Repaired . | . . . . . . Time . | . . . . . . Parts Recycled . | . . . . . . Recycled Matter 36 | . 36 . . . . Retrieved Matter . | . . . . . . Retrieved Components . | . . . . . . Parts Scanalyzed . | . . . . . . Part Schematics Acquired . | . . . . . . Parts Damaged . | . . . . . . Bothacking | -11 -10 -10 -10 -9 -8 ------------ Run | Yrd Mat Min Exi Min Mat Used RIF Installer . | . . . . . . Robots Hacked . | . . . . . . Non-combat . | . . . . . . Combat . | . . . . . . Robot Hacks Applied . | . . . . . . Relay Couplers Released . | . . . . . . Fabnet Peak Effective % . | . . . . . . Robots Rewired 4 | . . . 4 . . Allies Hacked . | . . . . . . Hacks Repelled . | . . . . . . Allies | -11 -10 -10 -10 -9 -8 -------- Run | Yrd Mat Min Exi Min Mat Total Allies 4 | . . . 4 . . Largest Group 4 | . . . 4 4 2 Highest-Rated Group 45 | . . . 45 45 16 Highest-Rated Ally 21 | . . . 21 21 8 Total Orders . | . . . . . . Ally Attacks 25 | . . . . . 25 Total Damage 177 | . . . . . 177 Kills 1 | . . . . . 1 Allies Corrupted . | . . . . . . Allies Melted . | . . . . . . Intel | -11 -10 -10 -10 -9 -8 ------- Run | Yrd Mat Min Exi Min Mat Active Infowar (turns) 1289 | . . . . . 1289 Sensors 848 | . . . . . 848 Cloaking 441 | . . . . . 441 Robot Analysis Total 1 | . . . . . 1 Derelict Logs Recovered 1 | . . 1 . . . Drone Launches . | . . . . . . Drone Recoveries . | . . . . . . Exploration | -11 -10 -10 -10 -9 -8 ------------- Run | Yrd Mat Min Exi Min Mat Turns Passed 4575 | 57 701 301 1721 315 1480 Spaces Moved 1885 | 48 237 116 641 120 723 Core 5 | 1 . . . . 4 Treads . | . . . . . . Legs 1424 | . 222 116 641 120 325 Wheels 456 | 47 15 . . . 394 Hover . | . . . . . . Flight . | . . . . . . Fastest Speed 50 | 50 90 260 260 260 108 Average Speed 216 | 89 249 260 260 260 161 Slowest Speed 750 | 100 260 260 260 260 750 Overloaded Moves . | . . . . . . Propulsion Burnouts . | . . . . . . Robots Hopped . | . . . . . . Potential Cave-ins 3 | . . . . . 3 Cave-ins Triggered . | . . . . . . Exploration Rate (%) 38 | 4 27 38 81 41 41 Regions Visited 5 Branch Regions 3 Pre-discovered Areas 2 | . . 1 1 . . Known Exits Taken . | . . . . . . Unknown Exits Taken 5 | 1 1 1 1 1 . Scrap Searched 1 | . . . . 1 . Spaces Dug 14 | . . . . . 14 Terrain Destroyed 108 | . . . . . 108 Melee 14 | . . . . . 14 Projectile 7 | . . . . . 7 AOE 87 | . . . . . 87 Terrain Rammed . | . . . . . . Walls Destroyed . | . . . . . . Machines Disabled . | . . . . . . Actions | -11 -10 -10 -10 -9 -8 --------- Run | Yrd Mat Min Exi Min Mat Total 2226 | 58 302 117 698 126 925 Wait 53 | 1 18 . 11 1 22 Move 1880 | 47 236 115 640 119 723 Hop . | . . . . . . Pick Up 52 | 4 16 . 5 2 25 Fast Attach 11 | 6 1 . . . 4 Attach 17 | . . 1 . . 16 Detach 1 | . . . . . 1 Swap 14 | . 3 . 1 1 9 Drop 24 | . . 1 4 3 16 Fire 77 | . 27 . . . 50 Melee 59 | . . . . . 59 Ram . | . . . . . . Kick 1 | . 1 . . . . Crush . | . . . . . . Escape Stasis . | . . . . . . Rewire 37 | . . . 37 . . Trap . | . . . . . . Miscellaneous . | . . . . . . Route ------- -11/Scrapyard -10/Materials -10/Mines (discovered 2 exits: [*Mat] / *Exi) -10/Exiles (discovered 2 exits: *Min x2) -9/Mines -8/Materials History --------- Turn | Location | Event 9 | -11/Scrapyard | Discovered new exit (range 16) 58 | -11/Scrapyard | Entered Materials 123 | -10/Materials | Discovered new exit (range 9) 305 | -10/Materials | Build established: Mutant 759 | -10/Materials | Entered Mines 813 | -10/Mines | Learned location of Storage (-7) 855 | -10/Mines | Discovered new exit (range 12) 1047 | -10/Mines | Deemed a non-threat by the Exiles lab entrance 1050 | -10/Mines | Discovered new exit (range 5) 1060 | -10/Mines | Entered Exiles 1060 | -10/Exiles | Found Exiles lab destroyed 1111 | -10/Exiles | Discovered new exit (range 15) 1423 | -10/Exiles | Learned location of Zion (-6) 1570 | -10/Exiles | Discovered new exit (range 14) 2216 | -10/Exiles | Build established: Commander-Mutant 2781 | -10/Exiles | Entered Mines 2781 | -9/Mines | Accompanied by 4 allies 2806 | -9/Mines | Assembled infested the area 2811 | -9/Mines | Assisted by a Guerilla fighting off Assembled 3010 | -9/Mines | Met a Derelict who couldn't figure out how to use a Trap Extractor 3081 | -9/Mines | Discovered new exit (range 5) 3096 | -9/Mines | Entered Materials 3096 | -8/Materials | Accompanied by 2 allies 3096 | -8/Materials | Evolved 4 slots: Propulsion x1, Utility x3 3360 | -8/Materials | Build established: Mutant 3631 | -8/Materials | Central database locked down 3708 | -8/Materials | Core integrity fell below 50% 3745 | -8/Materials | Destroyed 9 combat bots 3752 | -8/Materials | Lost 7 parts (1p3n3u) 4434 | -8/Materials | Build established: Hacker-Mutant 4517 | -8/Materials | Core integrity fell below 20% 4553 | -8/Materials | System corruption reached 10% 4576 | -8/Materials | Destroyed by G-47 Trooper with Particle Gun Last Messages --------------- 04542_ G-47 Trooper system corrupted by crushing effect. 04543_ G-47 Trooper system terminally corrupted. 04543_ Imp. Heat Sink fried. 04544_ U-05 Engineer builds a Wall. 04547_ K-01 Serf collects debris. 04549_ U-05 Engineer lays Concrete. 04550_ The unstable cave ceiling collapses. 04550_ U-05 Engineer builds a Wall. 04552_ Acquired Corrupted Aluminum Leg. 04552_ Integrated Corrupted Aluminum Leg (+11). 04555_ K-01 Serf cleans the Terminal. 04557_ Acquired Hvy. Particle Cannon. 04558_ System corrupted: Energy discharge (-16). 04558_ K-01 Serf cleans the Terminal. 04561_ Destroyed Imp. Hover Unit. 04561_ W-25 Informer suffers critical hit (Meltdown). 04572_ Cesium-ion Thruster destroyed. 04572_ Critical hit (Burn: +37). 04574_ Mak. Hammer destroyed. 04576_ System corrupted: Aluminum Leg rejected. Map ----- +----------------------------------------------------+ | ?????????????????????????????????????????????????? | | ?????????????????????????????????????????????????? | | ?????????????????????????????????????????????????? | | ?????????????????????????????????????????????????? | | ?????????????????????????????????????????????????? | | ?????????????????????????????????????????????????? | | ?????????????????????????????????????????????????? | | ?????????????????????????????????????????????????? | | ?????????????????????????????????????????????????? | | ????????????????????????????H????????????????????? | | ?????????????????????????????????????????????????? | | ?????????????????????????????????????????????????? | | ?????????????????????????????k???????????????????? | | ?????????????????????????????????????????????????? | | ?????????????????????????????????????????????????? | | ?????????????????????????????????????????????????? | | ??????????????????????????? ??????????????????? | | ????????????????o????????? ??????????????????? | | ???????????k????????????? ??????????????????? | | #???????????????????????? ???????????????????? | | #???????????????????#####+#####???????????????? | | #???????????????????# * #???????????????? | | +???????????????????#""" % #???????????????? | | #???????????????????#"T ! ! #???????????????? | | #???????????????????#""" #???????????????? | | #???????????????????# @g """ #???????????????? | | #??????????######???# gg """ #???????????????? | | #?????????##!!!!##??# ! """ ########????????? | | #?????????#! !#### # #????????? | | #????????## ## #]######### #????????? | | ########### # ############ #????????? | | g #????????? | | ############/### = # ######## #????????? | | #+######?## # %*# ##??????# % #????????? | | ### # # ###???????####+###????????? | | """ ## # # # #???????????# ?????????? | | """ #?# ## # #???????????# """ ???????? | | """ ### # # #???????????# "R #??????? | | ## # # #???????????# """ +??????? | | """ ## #+###### #???????????# """ #??????? | | """ ## # ## ## #???????????# #??????? | | """ ## # # # #???????????##+#?###??????? | | ### # ###########??? ???????????? | | ###/####?# ## + #??? ???????????? | | # ######### # #??# #?##???????? | | # # # # #??# ????????? | | # # + + #??# ????????? | | ! # # ######## # ###########??# ?????????? | | +## ################## ##????######## ??????????? | | #????????# [ # ##????# ## #??????????? | +----------------------------------------------------+ Best States ------------- Heat Dissipation 31 Energy Generation 14 Energy Capacity 450 Matter Stores 300 Matter Capacity 300 Sight Range 16 Robot Scan Range 15 Terrain Scan Density 10 Cloak Strength 3 Armor Coverage 225 Evasion (%) 42 Offensive Hacking 21 Trap Extractor Capacity 6 Item Schematics ----------------- None Robot Schematics ------------------ None Fabricated ------------ Nothing Repaired ---------- Nothing Alien Tech Used ----------------- None Achievements -------------- None Challenges ------------ None Game ------ Seed InsulatedTerrorNanoactuators Manual? 0 Play Time 00:53:20 Cumulative 49.0 hours Start 2025.09.17 @ 11:07:16 End 2025.09.17 @ 12:01:17 Sessions 3 Manual Loads 0 Difficulty Rogue Special Mode None Game No. 55 Rogue 55 Adventurer 0 Explorer 0 Win Type - Total 0 Types 0/0/0/0/0/0/0/0/0/0 Lore% 17 Gallery% 29 Achievement% 26 Wizard Run 0 Options --------- Layout 1 ASCII 0 Keyboard 0 Movement Numpad Keybinds 0 Fullscreen 1 Font 32/SmallcapsGlow Map View 77x35 Zoom Use 0% Tactical HUD 1 Map Filters NONE Filters NONE Steam 1 RUN: cf59daff-2919-4046-a0d3-f29295072a14